[Event "European Women Rapid-ch 2023"]
[Site "Monaco"]
[Date "2024.01.14"]
[Round "9.5"]
[White "Garcia Martin, Marta"]
[Black "Wagner, Dinara"]
[Result "0-1"]
[ECO "B23"]
[WhiteElo "2342"]
[BlackElo "2459"]
[Annotator "RC"]
[PlyCount "120"]
[EventDate "2023.12.19"]
[EventType "swiss"]
[EventCountry "MNC"]
[SourceTitle "playchess.com"]
[Source "ChessBase"]
[SourceQuality "1"]
[TimeControl "900+10"]

1. e4 {[%emt 0:00:02]} c5 {[%emt 0:00:01]} 2. Nc3 {[%emt 0:00:13]} d6 {[%emt 0:00:02]} 3. d4 {[%emt 0:00:01]} cxd4 4. Qxd4 {[%emt 0:00:01]} Nc6 {[%emt 0:00:06]} 5. Qd2 {[%emt 0:00:01]} Nf6 {[%emt 0:00:10]} 6. b3 {[%emt 0:00:01]} e6 {[%emt 0:00:02]} 7. Bb2 {[%emt 0:00:03]} d5 {[%emt 0:00:06]} 8. exd5 {[%emt 0:01:23]} exd5 {[%emt 0:00:01]} 9. O-O-O {[%emt 0:00:43]} Be6 {[%emt 0:00:02]} 10. Kb1 {[%emt 0:00:58]} Qa5 {[%emt 0:01:03]} 11. Nb5 {[%emt 0:00:12]} Qxd2 {[%emt 0:00:02]} 12. Rxd2 {[%emt 0:00:00]} Ne4 {[%emt 0:00:11]} 13. Re2 {[%emt 0:00:33]} O-O-O {[%emt 0:00:48]} 14. f3 {[%emt 0:00:12]} Nf6 {[%emt 0:00:17]} 15. Nd4 {[%emt 0:01:15]} Bd7 {[%emt 0:00:45]} 16. Rd2 {[%emt 0:01:27]} Bb4 {[%emt 0:00:27]} 17. Rd1 {[%emt 0:00:05]} Bc5 {[%emt 0:01:24]} 18. Nxc6 {[%emt 0:02:08]} bxc6 {[%emt 0:00:08]} 19. Ba6+ {[%emt 0:00:13]} Kc7 {[%emt 0:00:07]} 20. Ne2 {[%emt 0:00:15]} Rhe8 {[%emt 0:00:42]} 21. Ng3 {[%emt 0:00:23]} Re7 {[%emt 0:01:15]} 22. Bd3 {[%emt 0:00:02]} Rde8 {[%emt 0:00:20]} 23. Nf5 {[%emt 0:05:03]} Bxf5 {[%emt 0:00:06]} 24. Bxf5 {[%emt 0:00:01]} h6 {[%emt 0:00:24]} 25. Bd3 {[%emt 0:00:19]} Bd6 {[%emt 0:00:56]} 26. c4 {[%emt 0:00:13]} Be5 {[%emt 0:00:12]} 27. Ba3 {[%emt 0:00:15]} Bd6 {[%emt 0:00:07]} 28. Bb2 {[%emt 0:00:51]} Be5 {[%emt 0:00:13]} 29. Ba3 {[%emt 0:00:04]} Bd6 {[%emt 0:00:08]} 30. Bc1 {[%emt 0:01:30]} d4 {[%emt 0:00:07]} 31. g4 {[%emt 0:00:55]} Nd7 {[%emt 0:00:41]} 32. h4 {[%emt 0:00:35]} Ne5 {[%emt 0:00:24]} 33. Be4 {[%emt 0:00:16]} Nxg4 {[%emt 0:00:17]} 34. Bxc6 {[%emt 0:00:03]} Kxc6 {[%emt 0:01:28]} 35. fxg4 {[%emt 0:00:01]} Re4 {[%emt 0:00:01]} 36. g5 {[%emt 0:00:01]} h5 {[%emt 0:00:02]} 37. Bb2 {[%emt 0:00:28]} Bc5 {[%emt 0:00:12]} 38. a3 {[%emt 0:00:17]} a5 {[%emt 0:00:04]} 39. b4 {[%emt 0:00:05]} axb4 {[%emt 0:00:02]} 40. axb4 {[%emt 0:00:01]} Bxb4 {[%emt 0:00:01]} 41. Rxd4 {[%emt 0:00:12]} Rxd4 {[%emt 0:00:19]} 42. Bxd4 {[%emt 0:00:01]} g6 {[%emt 0:00:00]} 43. Kc2 {[%emt 0:00:27]} Bc5 {[%emt 0:00:23]} 44. Bc3 {[%emt 0:00:26]} Re4 {[%emt 0:01:20]} 45. Kd3 {[%emt 0:00:01]} Re3+ {[%emt 0:00:02]} 46. Kd2 {[%emt 0:00:03]} Re4 {[%emt 0:00:01]} 47. Kd3 {[%emt 0:00:01]} Re3+ {[%emt 0:00:03]} 48. Kd2 {[%emt 0:00:00]} Rf3 {[%emt 0:00:11]} 49. Rh2 {[%emt 0:00:47]} Rf2+ {[%emt 0:00:49]} 50. Rxf2 {[%emt 0:00:02]} Bxf2 {[%emt 0:00:00]} 51. Kd3 {[%emt 0:00:08]} Bxh4 {[%emt 0:00:02]} 52. Bd2 {[%emt 0:00:20]} Bg3 {[%emt 0:00:02]} 53. Be3 {[%emt 0:00:09]} h4 {[%emt 0:01:27]} 54. Ke4 {[%emt 0:00:03]} h3 {[%emt 0:00:01]} 55. Kf3 {[%emt 0:00:01]} Bc7 {[%emt 0:00:08]} 56. Kf2 {[%emt 0:00:26]} Bb6 {[%emt 0:00:43]} 57. Bxb6 {[%emt 0:00:03]} Kxb6 {[%emt 0:00:02]} 58. Kg3 {[%emt 0:00:01]} Kc5 {[%emt 0:00:00]} 59. Kxh3 {[%emt 0:00:01]} Kxc4 {[%emt 0:00:02]} 60. Kg4 {[%emt 0:00:01]} Kd5 {[%emt 0:00:16]} 0-1

[Event "European Women Rapid-ch 2023"]
[Site "Monaco"]
[Date "2024.01.14"]
[Round "9.6"]
[White "Batsiashvili, Nino"]
[Black "Ushenina, Anna"]
[Result "1/2-1/2"]
[ECO "D02"]
[WhiteElo "2451"]
[BlackElo "2415"]
[Annotator "RC"]
[PlyCount "183"]
[EventDate "2023.12.19"]
[EventType "swiss"]
[EventCountry "MNC"]
[SourceTitle "playchess.com"]
[Source "ChessBase"]
[SourceQuality "1"]
[TimeControl "900+10"]

1. Nf3 {[%emt 0:00:01]} d5 {[%emt 0:00:02]} 2. g3 {[%emt 0:00:01]} Nd7 {[%emt 0:00:02]} 3. d4 {[%emt 0:00:01]} Nb6 {[%emt 0:00:01]} 4. a4 {[%emt 0:00:02]} a5 {[%emt 0:00:01]} 5. b3 {[%emt 0:00:01]} Bf5 {[%emt 0:00:04]} 6. Nh4 {[%emt 0:00:02]} Bg4 {[%emt 0:00:01]} 7. Ba3 {[%emt 0:00:26]} Nd7 {[%emt 0:00:08]} 8. Bg2 {[%emt 0:00:13]} e6 {[%emt 0:00:07]} 9. Bxf8 {[%emt 0:00:08]} Nxf8 {[%emt 0:00:02]} 10. h3 {[%emt 0:01:02]} Bh5 {[%emt 0:00:04]} 11. O-O {[%emt 0:00:44]} Nd7 {[%emt 0:00:23]} 12. c4 {[%emt 0:00:22]} c6 {[%emt 0:00:02]} 13. Nc3 {[%emt 0:00:02]} Ngf6 {[%emt 0:00:56]} 14. Qc2 {[%emt 0:00:49]} O-O {[%emt 0:02:23]} 15. e3 {[%emt 0:00:47]} g5 {[%emt 0:00:29]} 16. Nf3 {[%emt 0:00:02]} Bg6 {[%emt 0:00:01]} 17. Qb2 {[%emt 0:00:39]} Ne4 {[%emt 0:00:06]} 18. Ne5 {[%emt 0:01:11]} Nxe5 {[%emt 0:00:51]} 19. dxe5 {[%emt 0:00:06]} Nc5 {[%emt 0:03:37]} 20. cxd5 {[%emt 0:00:15]} cxd5 {[%emt 0:01:19]} 21. Nb5 {[%emt 0:00:09]} Rc8 {[%emt 0:00:02]} 22. Rfd1 {[%emt 0:02:24]} Qb6 {[%emt 0:01:08]} 23. Qd4 {[%emt 0:02:02]} Rc6 {[%emt 0:00:13]} 24. Qg4 {[%emt 0:00:05]} h6 {[%emt 0:01:33]} 25. Nd4 {[%emt 0:00:34]} Rc7 {[%emt 0:00:27]} 26. h4 {[%emt 0:00:25]} Nxb3 {[%emt 0:01:57]} 27. Nxb3 {[%emt 0:01:59]} Qxb3 {[%emt 0:00:03]} 28. hxg5 {[%emt 0:00:01]} Rc4 {[%emt 0:02:41]} 29. Rd4 {[%emt 0:00:43]} Rxd4 {[%emt 0:00:25]} 30. exd4 {[%emt 0:00:08]} Qc3 {[%emt 0:00:18]} 31. Rd1 {[%emt 0:00:24]} h5 {[%emt 0:00:14]} 32. Qf4 {[%emt 0:00:19]} Rc8 {[%emt 0:00:04]} 33. Bf1 {[%emt 0:00:06]} Qc2 {[%emt 0:00:09]} 34. Ra1 {[%emt 0:01:07]} Qb2 {[%emt 0:00:31]} 35. Re1 {[%emt 0:00:02]} Rc2 {[%emt 0:00:07]} 36. Bb5 {[%emt 0:00:19]} Rd2 {[%emt 0:00:07]} 37. Qf6 {[%emt 0:00:20]} Qxd4 {[%emt 0:00:03]} 38. Be8 {[%emt 0:01:54]} Rd1 {[%emt 0:00:03]} 39. Rxd1 {[%emt 0:00:01]} Qxd1+ {[%emt 0:00:01]} 40. Kh2 {[%emt 0:00:01]} h4 {[%emt 0:00:15]} 41. Bxf7+ {[%emt 0:00:22]} Bxf7 {[%emt 0:00:02]} 42. g6 {[%emt 0:00:01]} hxg3+ {[%emt 0:00:06]} 43. Kg2 {[%emt 0:00:00]} Bxg6 {[%emt 0:00:33]} 44. Qxg6+ {[%emt 0:00:01]} Kh8 {[%emt 0:00:06]} 45. Qh6+ {[%emt 0:00:02]} Kg8 {[%emt 0:00:02]} 46. Qxe6+ {[%emt 0:00:01]} Kh7 {[%emt 0:00:25]} 47. Qh3+ {[%emt 0:00:09]} Kg6 {[%emt 0:00:08]} 48. Qe6+ {[%emt 0:00:15]} Kg5 {[%emt 0:00:26]} 49. Qf6+ {[%emt 0:00:07]} Kh5 {[%emt 0:00:01]} 50. Qf5+ {[%emt 0:00:16]} Kh6 {[%emt 0:00:04]} 51. fxg3 {[%emt 0:00:32]} Qe2+ {[%emt 0:00:23]} 52. Kh3 {[%emt 0:00:02]} Qh5+ {[%emt 0:00:10]} 53. Qxh5+ {[%emt 0:00:01]} Kxh5 {[%emt 0:00:00]} 54. g4+ {[%emt 0:00:04]} Kg5 {[%emt 0:00:02]} 55. Kg3 {[%emt 0:00:01]} d4 {[%emt 0:00:37]} 56. Kf3 {[%emt 0:00:04]} b5 {[%emt 0:00:07]} 57. axb5 {[%emt 0:00:02]} a4 {[%emt 0:00:05]} 58. b6 {[%emt 0:00:28]} a3 {[%emt 0:00:02]} 59. b7 {[%emt 0:00:03]} a2 {[%emt 0:00:01]} 60. b8=Q {[%emt 0:00:02]} a1=Q {[%emt 0:00:02]} 61. Qd8+ {[%emt 0:00:36]} Kg6 {[%emt 0:00:02]} 62. Qf6+ {[%emt 0:00:10]} Kh7 {[%emt 0:00:01]} 63. Qf5+ {[%emt 0:00:01]} Kg7 {[%emt 0:00:04]} 64. Qd3 {[%emt 0:00:46]} Qh1+ {[%emt 0:00:31]} 65. Kf4 {[%emt 0:00:15]} Qh2+ {[%emt 0:00:30]} 66. Ke4 {[%emt 0:00:08]} Qg2+ {[%emt 0:00:07]} 67. Qf3 {[%emt 0:00:10]} Qd2 {[%emt 0:00:27]} 68. Qf6+ {[%emt 0:00:41]} Kh7 {[%emt 0:00:02]} 69. Qf5+ {[%emt 0:00:29]} Kh8 {[%emt 0:00:12]} 70. Qc8+ {[%emt 0:00:09]} Kg7 {[%emt 0:00:05]} 71. Qd7+ {[%emt 0:00:06]} Kg6 {[%emt 0:00:07]} 72. Qf5+ {[%emt 0:00:16]} Kg7 {[%emt 0:00:06]} 73. Qd7+ {[%emt 0:00:12]} Kg6 {[%emt 0:00:01]} 74. Qxd4 {[%emt 0:00:01]} Qg2+ {[%emt 0:00:13]} 75. Kd3 {[%emt 0:00:01]} Qf3+ {[%emt 0:00:11]} 76. Kc4 {[%emt 0:00:19]} Qc6+ {[%emt 0:00:04]} 77. Kb4 {[%emt 0:00:07]} Qb7+ {[%emt 0:00:03]} 78. Kc3 {[%emt 0:00:01]} Qc6+ {[%emt 0:00:06]} 79. Qc4 {[%emt 0:00:03]} Qg2 {[%emt 0:00:12]} 80. Qd3+ {[%emt 0:00:08]} Kg7 {[%emt 0:00:09]} 81. Qd4 {[%emt 0:00:04]} Qc6+ {[%emt 0:00:07]} 82. Kb4 {[%emt 0:00:23]} Qb7+ {[%emt 0:00:02]} 83. Kc5 {[%emt 0:00:09]} Qc7+ {[%emt 0:00:07]} 84. Kd5 {[%emt 0:00:04]} Qd7+ {[%emt 0:00:06]} 85. Kc4 {[%emt 0:00:09]} Qa4+ {[%emt 0:00:28]} 86. Kc3 {[%emt 0:00:10]} Qa1+ {[%emt 0:00:08]} 87. Kd3 {[%emt 0:00:05]} Qd1+ {[%emt 0:00:04]} 88. Ke3 {[%emt 0:00:25]} Qg1+ {[%emt 0:00:03]} 89. Kd3 {[%emt 0:00:06]} Qd1+ {[%emt 0:00:01]} 90. Kc4 {[%emt 0:00:06]} Qa4+ {[%emt 0:00:02]} 91. Kd5 {[%emt 0:00:04]} Qd7+ {[%emt 0:00:05]} 92. Ke4 {[%emt 0:00:12]} 1/2-1/2

[Event "European Women Rapid-ch 2023"]
[Site "Monaco"]
[Date "2024.01.14"]
[Round "9.7"]
[White "Kulon, Klaudia"]
[Black "Cramling, Pia"]
[Result "1-0"]
[ECO "A23"]
[WhiteElo "2323"]
[BlackElo "2437"]
[Annotator "RC"]
[PlyCount "65"]
[EventDate "2023.12.19"]
[EventType "swiss"]
[EventCountry "MNC"]
[SourceTitle "playchess.com"]
[Source "ChessBase"]
[SourceQuality "1"]
[TimeControl "900+10"]

1. c4 {[%emt 0:00:01]} e5 {[%emt 0:00:03]} 2. g3 {[%emt 0:00:04]} c6 {[%emt 0:00:01]} 3. Bg2 {[%emt 0:00:03]} d5 {[%emt 0:00:11]} 4. cxd5 cxd5 {[%emt 0:00:01]} 5. Qb3 {[%emt 0:00:28]} Nf6 {[%emt 0:00:13]} 6. Nc3 {[%emt 0:00:01]} Nc6 {[%emt 0:01:10]} 7. Nxd5 {[%emt 0:00:19]} Nd4 {[%emt 0:00:32]} 8. Nxf6+ {[%emt 0:00:25]} gxf6 {[%emt 0:00:36]} 9. Qd1 {[%emt 0:00:20]} Qc7 {[%emt 0:04:41]} 10. Kf1 {[%emt 0:00:14]} Be6 {[%emt 0:00:20]} 11. b3 {[%emt 0:00:27]} Nc2 {[%emt 0:00:20]} 12. Rb1 {[%emt 0:00:06]} Nb4 {[%emt 0:00:06]} 13. Bb2 {[%emt 0:01:59]} Nxa2 {[%emt 0:00:11]} 14. d4 {[%emt 0:00:37]} Rd8 {[%emt 0:00:50]} 15. d5 {[%emt 0:00:25]} Nb4 {[%emt 0:00:27]} 16. e4 {[%emt 0:00:11]} Bd7 {[%emt 0:00:05]} 17. Bf3 {[%emt 0:00:09]} Bh6 {[%emt 0:00:36]} 18. Kg2 {[%emt 0:00:49]} Bb5 {[%emt 0:00:37]} 19. Bc1 {[%emt 0:00:17]} Bg7 {[%emt 0:00:34]} 20. Be2 {[%emt 0:02:18]} Bxe2 {[%emt 0:00:34]} 21. Nxe2 {[%emt 0:00:02]} f5 {[%emt 0:00:22]} 22. Ba3 {[%emt 0:00:20]} Qa5 {[%emt 0:00:14]} 23. Ra1 {[%emt 0:00:49]} fxe4 {[%emt 0:00:33]} 24. Qd2 {[%emt 0:00:08]} Bf8 {[%emt 0:01:04]} 25. Qg5 {[%emt 0:00:23]} Bd6 {[%emt 0:01:02]} 26. Nc3 {[%emt 0:00:28]} Rc8 {[%emt 0:00:18]} 27. Nxe4 {[%emt 0:00:07]} Qxd5 {[%emt 0:00:01]} 28. Qg4 {[%emt 0:01:18]} Rd8 {[%emt 0:02:38]} 29. Rhd1 {[%emt 0:00:28]} Nd3 {[%emt 0:00:17]} 30. Qf3 {[%emt 0:00:29]} Be7 {[%emt 0:00:00]} 31. Bxe7 {[%emt 0:00:24]} Kxe7 {[%emt 0:00:33]} 32. Qf6+ {[%emt 0:00:01]} Kd7 {[%emt 0:00:01]} 33. Rxd3 {[%emt 0:00:04]} 1-0

[Event "European Women Rapid-ch 2023"]
[Site "Monaco"]
[Date "2024.01.14"]
[Round "9.8"]
[White "Calzetta Ruiz, Monica"]
[Black "Zhukova, Natalia"]
[Result "1/2-1/2"]
[ECO "C70"]
[WhiteElo "2241"]
[BlackElo "2301"]
[Annotator "ChessBase"]
[PlyCount "76"]
[EventDate "2023.12.19"]
[EventType "swiss"]
[EventCountry "MNC"]
[SourceTitle "playchess.com"]
[Source "ChessBase"]
[SourceQuality "1"]
[TimeControl "900+10"]

1. e4 {[%emt 0:00:02]} e5 {[%emt 0:00:01]} 2. Nf3 {[%emt 0:00:02]} Nc6 {[%emt 0:00:02]} 3. Bb5 {[%emt 0:00:02]} a6 {[%emt 0:00:01]} 4. Ba4 {[%emt 0:00:01]} g6 {[%emt 0:00:48]} 5. Nc3 {[%emt 0:01:39]} Bg7 {[%emt 0:00:12]} 6. d3 {[%emt 0:00:28]} Nge7 {[%emt 0:00:36]} 7. h4 {[%emt 0:00:03]} h6 {[%emt 0:00:15]} 8. h5 {[%emt 0:00:14]} g5 {[%emt 0:00:15]} 9. Nxg5 {[%emt 0:00:37]} hxg5 {[%emt 0:00:05]} 10. Bxg5 {[%emt 0:00:01]} Bh6 {[%emt 0:03:03]} 11. Bf6 {[%emt 0:02:28]} Rg8 {[%emt 0:02:52]} 12. Nd5 {[%emt 0:00:03]} b5 {[%emt 0:00:02]} 13. Bb3 {[%emt 0:00:01]} d6 {[%emt 0:00:06]} 14. Bxe7 {[%emt 0:05:01]} Nxe7 {[%emt 0:00:03]} 15. Nf6+ {[%emt 0:00:02]} Kf8 {[%emt 0:00:01]} 16. Nxg8 {[%emt 0:00:01]} Nxg8 {[%emt 0:00:56]} 17. f3 {[%emt 0:02:54]} Qg5 {[%emt 0:00:50]} 18. g4 {[%emt 0:00:11]} Ne7 {[%emt 0:00:29]} 19. a4 {[%emt 0:00:04]} b4 {[%emt 0:00:06]} 20. a5 {[%emt 0:00:10]} Bd7 {[%emt 0:00:13]} 21. Qe2 {[%emt 0:00:13]} Kg7 {[%emt 0:00:21]} 22. Bc4 {[%emt 0:01:01]} c6 {[%emt 0:01:42]} 23. Kf2 {[%emt 0:00:43]} d5 {[%emt 0:00:29]} 24. Bb3 {[%emt 0:00:11]} Qf6 {[%emt 0:00:37]} 25. Rae1 {[%emt 0:00:23]} d4 {[%emt 0:00:27]} 26. Reg1 {[%emt 0:00:44]} Be3+ {[%emt 0:00:14]} 27. Kg2 {[%emt 0:00:07]} Kh7 {[%emt 0:00:19]} 28. Rf1 {[%emt 0:00:07]} Rg8 {[%emt 0:00:03]} 29. Rh3 {[%emt 0:00:12]} Qf4 {[%emt 0:01:01]} 30. Qe1 {[%emt 0:00:24]} c5 {[%emt 0:00:20]} 31. Qh4 {[%emt 0:00:25]} Bxg4 {[%emt 0:00:57]} 32. fxg4 {[%emt 0:01:21]} Rxg4+ {[%emt 0:00:01]} 33. Qg3 {[%emt 0:00:01]} Qg5 {[%emt 0:01:50]} 34. Rxf7+ {[%emt 0:00:02]} Kh6 {[%emt 0:00:01]} 35. Rf6+ {[%emt 0:00:30]} Kh7 {[%emt 0:00:06]} 36. Rf7+ {[%emt 0:00:01]} Kh6 {[%emt 0:00:03]} 37. Rf6+ {[%emt 0:00:01]} Kh7 {[%emt 0:01:12]} 38. Rf7+ {[%emt 0:00:07]} Kh6 {[%emt 0:00:01]} 1/2-1/2

[Event "European Women Rapid-ch 2023"]
[Site "Monaco"]
[Date "2024.01.14"]
[Round "9.9"]
[White "Bensdorp-De Labaca, Marlies"]
[Black "Papp, Petra"]
[Result "1-0"]
[ECO "D80"]
[WhiteElo "2237"]
[BlackElo "2267"]
[Annotator "ChessBase"]
[PlyCount "117"]
[EventDate "2023.12.19"]
[EventType "swiss"]
[EventCountry "MNC"]
[SourceTitle "playchess.com"]
[Source "ChessBase"]
[SourceQuality "1"]
[TimeControl "900+10"]

1. d4 {[%emt 0:00:02]} Nf6 {[%emt 0:00:03]} 2. c4 {[%emt 0:00:02]} g6 {[%emt 0:00:03]} 3. Nc3 {[%emt 0:00:02]} d5 {[%emt 0:00:02]} 4. e3 {[%emt 0:00:02]} Bg7 {[%emt 0:00:03]} 5. cxd5 {[%emt 0:00:02]} Nxd5 {[%emt 0:00:03]} 6. Nxd5 {[%emt 0:00:02]} Qxd5 {[%emt 0:00:02]} 7. Ne2 {[%emt 0:00:02]} O-O {[%emt 0:00:34]} 8. Nc3 {[%emt 0:00:04]} Qd8 {[%emt 0:01:20]} 9. Be2 {[%emt 0:00:05]} e5 {[%emt 0:01:04]} 10. d5 {[%emt 0:01:34]} c6 {[%emt 0:00:37]} 11. e4 {[%emt 0:00:07]} f5 {[%emt 0:00:31]} 12. O-O {[%emt 0:00:38]} Nd7 {[%emt 0:01:03]} 13. Be3 {[%emt 0:03:23]} f4 {[%emt 0:01:29]} 14. Bd2 {[%emt 0:00:02]} Nf6 {[%emt 0:00:09]} 15. Qb3 {[%emt 0:01:57]} Kh8 {[%emt 0:00:17]} 16. Rad1 {[%emt 0:00:09]} Qe8 {[%emt 0:00:19]} 17. f3 {[%emt 0:01:03]} g5 {[%emt 0:00:06]} 18. Be1 {[%emt 0:01:55]} g4 {[%emt 0:03:19]} 19. fxg4 {[%emt 0:00:42]} Nxg4 {[%emt 0:00:41]} 20. Bxg4 {[%emt 0:00:52]} Bxg4 {[%emt 0:00:01]} 21. Rd3 {[%emt 0:00:28]} Qe7 {[%emt 0:02:01]} 22. h3 {[%emt 0:00:15]} Bh5 {[%emt 0:00:11]} 23. Kh2 {[%emt 0:01:31]} Rg8 {[%emt 0:00:02]} 24. d6 {[%emt 0:00:55]} Qd7 {[%emt 0:00:23]} 25. Na4 {[%emt 0:00:15]} b6 {[%emt 0:00:11]} 26. Qc2 {[%emt 0:00:03]} Bf6 {[%emt 0:01:10]} 27. b3 {[%emt 0:00:08]} Rg7 {[%emt 0:00:42]} 28. Bc3 {[%emt 0:00:16]} Qe6 {[%emt 0:01:04]} 29. Qb2 {[%emt 0:00:31]} Rg6 {[%emt 0:00:34]} 30. Rf2 {[%emt 0:01:47]} Rd8 {[%emt 0:00:19]} 31. Rfd2 {[%emt 0:00:20]} Rd7 {[%emt 0:00:01]} 32. Qa1 {[%emt 0:00:07]} Rh6 {[%emt 0:00:51]} 33. Nb2 {[%emt 0:00:11]} b5 {[%emt 0:00:45]} 34. Nd1 {[%emt 0:00:01]} Bg6 {[%emt 0:00:12]} 35. Nf2 {[%emt 0:00:03]} Kg8 {[%emt 0:00:14]} 36. Kg1 {[%emt 0:00:03]} Bh5 {[%emt 0:00:07]} 37. a4 {[%emt 0:00:12]} Rg6 {[%emt 0:00:22]} 38. axb5 {[%emt 0:00:09]} cxb5 {[%emt 0:00:03]} 39. Qa6 {[%emt 0:00:07]} Rdg7 {[%emt 0:00:28]} 40. Ng4 {[%emt 0:00:58]} Bxg4 {[%emt 0:00:11]} 41. hxg4 {[%emt 0:00:02]} Qd7 {[%emt 0:00:01]} 42. Qa1 {[%emt 0:00:16]} Rxg4 {[%emt 0:00:20]} 43. Bxe5 {[%emt 0:00:05]} Bxe5 {[%emt 0:00:02]} 44. Qxe5 {[%emt 0:00:02]} b4 {[%emt 0:00:12]} 45. Qd5+ {[%emt 0:00:03]} Kh8 {[%emt 0:00:03]} 46. e5 {[%emt 0:00:04]} Qc8 {[%emt 0:00:13]} 47. Qc4 {[%emt 0:00:18]} Qb7 {[%emt 0:00:02]} 48. Qd5 {[%emt 0:00:17]} Qb6+ {[%emt 0:00:02]} 49. Qd4 {[%emt 0:00:04]} Qb7 {[%emt 0:00:03]} 50. Qd5 {[%emt 0:00:10]} Qb6+ 51. Kf1 {[%emt 0:00:19]} Rh4 {[%emt 0:00:15]} 52. Qd4 {[%emt 0:00:13]} Qc6 {[%emt 0:00:08]} 53. Qd5 {[%emt 0:00:15]} Qb6 {[%emt 0:00:01]} 54. d7 {[%emt 0:00:18]} Rh1+ {[%emt 0:00:17]} 55. Ke2 {[%emt 0:00:00]} f3+ {[%emt 0:00:39]} 56. Qxf3 {[%emt 0:00:13]} Qd8 {[%emt 0:00:11]} 57. Rc2 {[%emt 0:00:09]} Rxd7 {[%emt 0:00:20]} 58. Rxd7 {[%emt 0:00:02]} Qxd7 59. Qf8# {[%emt 0:00:00]} 1-0

[Event "European Women Rapid-ch 2023"]
[Site "Monaco"]
[Date "2024.01.14"]
[Round "9.10"]
[White "Sliwicka, Alicja"]
[Black "Khademalsharieh, Sarasadat"]
[Result "0-1"]
[ECO "C70"]
[WhiteElo "2311"]
[BlackElo "2486"]
[Annotator "RC"]
[PlyCount "88"]
[EventDate "2023.12.19"]
[EventType "swiss"]
[EventCountry "MNC"]
[SourceTitle "playchess.com"]
[Source "ChessBase"]
[SourceQuality "1"]
[TimeControl "900+10"]

1. e4 {[%emt 0:00:01]} e5 {[%emt 0:00:02]} 2. Nf3 {[%emt 0:00:02]} Nc6 {[%emt 0:00:02]} 3. Bb5 {[%emt 0:00:02]} a6 {[%emt 0:00:04]} 4. Ba4 {[%emt 0:00:01]} g6 {[%emt 0:00:04]} 5. d4 {[%emt 0:00:09]} exd4 {[%emt 0:00:10]} 6. Nxd4 {[%emt 0:00:07]} Bg7 {[%emt 0:00:13]} 7. Nxc6 {[%emt 0:00:09]} bxc6 {[%emt 0:00:02]} 8. O-O {[%emt 0:00:07]} Ne7 {[%emt 0:00:02]} 9. Nc3 {[%emt 0:00:12]} O-O {[%emt 0:00:04]} 10. Bg5 {[%emt 0:00:06]} h6 {[%emt 0:00:02]} 11. Bh4 {[%emt 0:00:04]} Rb8 {[%emt 0:00:39]} 12. Bb3 {[%emt 0:00:20]} g5 {[%emt 0:03:52]} 13. Bg3 {[%emt 0:00:01]} Ng6 {[%emt 0:00:02]} 14. Qh5 {[%emt 0:00:13]} Kh7 {[%emt 0:00:07]} 15. e5 {[%emt 0:02:11]} Qe7 {[%emt 0:04:41]} 16. Rae1 {[%emt 0:00:02]} a5 {[%emt 0:00:07]} 17. Re3 {[%emt 0:02:11]} Ba6 {[%emt 0:00:22]} 18. Rfe1 {[%emt 0:00:01]} Rb4 {[%emt 0:00:07]} 19. a3 {[%emt 0:00:36]} Rd4 {[%emt 0:00:06]} 20. Ne4 {[%emt 0:00:55]} a4 {[%emt 0:00:26]} 21. Ba2 {[%emt 0:00:06]} Bc4 {[%emt 0:00:39]} 22. Bb1 {[%emt 0:00:12]} Rb8 {[%emt 0:01:38]} 23. c3 {[%emt 0:00:10]} Rd5 {[%emt 0:00:01]} 24. Nf6+ {[%emt 0:02:18]} Bxf6 {[%emt 0:00:08]} 25. exf6 {[%emt 0:00:03]} Qxf6 {[%emt 0:00:06]} 26. Be5 {[%emt 0:01:02]} Rxe5 {[%emt 0:00:56]} 27. Rxe5 {[%emt 0:00:03]} Rxb2 {[%emt 0:00:04]} 28. Bxg6+ {[%emt 0:00:27]} fxg6 {[%emt 0:00:37]} 29. Re7+ {[%emt 0:00:06]} Bf7 {[%emt 0:00:40]} 30. Qf3 {[%emt 0:00:13]} Qxe7 {[%emt 0:00:03]} 31. Qd1 {[%emt 0:02:03]} Qf6 {[%emt 0:00:09]} 32. f3 {[%emt 0:00:08]} Be6 {[%emt 0:00:13]} 33. Re3 {[%emt 0:00:20]} Qf5 {[%emt 0:00:10]} 34. Re1 {[%emt 0:00:35]} Qc2 {[%emt 0:00:08]} 35. Qxc2 {[%emt 0:00:06]} Rxc2 {[%emt 0:00:02]} 36. Re4 {[%emt 0:00:01]} Bb3 {[%emt 0:00:19]} 37. Re7+ {[%emt 0:00:02]} Kg8 {[%emt 0:00:01]} 38. Rxd7 {[%emt 0:00:03]} Rxc3 {[%emt 0:00:01]} 39. Rxc7 {[%emt 0:00:02]} Bd5 {[%emt 0:00:03]} 40. h4 {[%emt 0:00:13]} Rxa3 {[%emt 0:00:08]} 41. hxg5 {[%emt 0:00:02]} hxg5 {[%emt 0:00:01]} 42. Kh2 {[%emt 0:00:01]} Rc3 {[%emt 0:00:09]} 43. Kg3 {[%emt 0:00:13]} Be6 {[%emt 0:00:01]} 44. Re7 {[%emt 0:00:17]} Bf5 {[%emt 0:00:04]} 0-1